{"text_format":"3","workbook":"xlsx","n_sheets":1,"sheets":["Sheet1"],"read":"whole","date_system":"1900"}

{"sheet":"Sheet1","index":0,"n_rows":34,"n_cols":11,"rows_kept":34,"merged":[[0,0,0,10]]}
["2021年--2023年涉农资金公示信息"]
["截止日期：2024年3月25日"]
["项目名称","调整前金额","调整后金额","已支出（万元）","支出进度（%）","项目建设内容","项目建设地点","实施单位","项目实施情况（已开工已完成、已开工实施中、未开工）","绩效目标及自评结果","举报投诉情况（有/无）"]
["2021年涉农资金",{"$f":"SUM(B5:B13)","v":6973},{"$f":"SUM(C5:C13)","v":6973},{"$f":"SUM(D5:D13)","v":5062.46},{"$f":"D4/C4","v":{"v":0.726008891438405,"d":"72.60%"}}]
["1、郁南县南江河（连滩、东坝镇）碧道建设项目",5311.12,5311.12,3714.35,{"v":0.699353432044465,"d":"69.94%"},"全面推进河长制湖长制，碧道建设长度12.4公里，(①连滩、东坝镇碧道建设项目安排省级补助金额2000万元；②郁南县磨刀山遗址公园排涝站工程安排省级补助金额500万元；③郁南县东坝镇大坪电排站新建工程安排省级补助金额578.08万元；④2021年度水旱灾害系统及设备维护和防汛物资购置18.5万元；⑤郁南中型水利工程运行整改资金76.68万元；⑥2021年郁南县水利工程白蚁防治项目200万元；⑦郁南县南江河水面漂浮物100万元；⑧郁南县万里碧道2020年度建设项目1837.86万元）","连滩镇、东坝镇","广东宇洋建设工程有限公司、广东城投水利水电有限公司、广东新誉隆建设有限公司、中山市水利水电勘测设计咨询有限公司、云浮市云开白蚁防治工程有限公司","①连滩、东坝镇碧道建设项目，已开工实施中；②郁南县磨刀山遗址公园排涝站工程，已开工实施中；③郁南县东坝镇大坪电排站新建工程已开工已完成；④2021年度水旱灾害系统及设备维护和防汛物资购置已完成；⑤郁南县小型水利工程安全运行整改已开工已完成；⑥2021年郁南县水利工程白蚁防治项目已开工已完成；⑦郁南县南江河水面漂浮物已开工已完成；⑧郁南县万里碧道2020年度建设项目已开工已完成）","绩效目标：完成万里碧道建设4.6公里\n自评结果：完成万里碧道建设4.6公里","无"]
["2、郁南县河道采砂规划编制",280,280,279.5,{"v":0.998214285714286,"d":"99.82%"},"全面推进河长制湖长制，完成郁南县16条河448公里河道采砂规划编制","－","韶关市水利水电勘测设计咨询有限公司","已开工已完成","对郁南县河道采砂规划范围为辖区内第一次全国水\n利普查流域面积50平方公里以上且未列入省采砂规划(西\n江、北江)的河道及有采砂任务的其他河道进行规划，已完成绩效目标","无"]
["3、郁南县82座水电站清理整改核查评估项目",98.6,98.6,96.6,{"v":0.979716024340771,"d":"97.97%"},"完成郁南县82座小水电站清理整改核查评估，列入全面推进河长制湖长制考核内容","全县","珠江水资源水利水电勘测设计咨询有限公司","已开工已完成","绩效目标：完成对郁南县82座小水电站清理整改核查评估工作\n自评结果：完成对郁南县82座小水电站清理整改核查评估工作","无"]
["4、郁南县小型水库标准化建设项目",472.28,472.28,397.7,{"v":0.842085203692725,"d":"84.21%"},"①规范化小型水库的运行管理，进一步夯实小型水库安全基础，全面提升小型水库运行管理水平，对全县31座小型水库进行标准化建设工作，列入全面推进河长制湖长制考核内容；②全县范围设置县级河长制公示牌；③郁南县水电站生态流量核定项目及整改费用。","东坝镇、都城镇、平台镇、大湾镇、河口镇、连滩镇、通门镇、建城镇、大方镇、千官镇、历洞镇","云浮市基础工程公司","已开工已完成","对水库的管理制度、管理基础设施维修养护、管理范围划定与界桩、坝容坝貌提升、白蚁防治、 防汛物资和渗流量检\n测等进行标准化建设，已完成绩效目标","无"]
["5、郁南县连滩镇高枧水电站退出拆除项目",240,240,100,{"v":0.416666666666667,"d":"41.67%"},"完成2020年退出试点电站1座，列入河长制湖长制考核内容","连滩镇","郁南县恒基建筑工程有限公司","已开工实施中","完成连滩镇高枧水电站退出拆除","无"]
["6、郁南县小型水库安全鉴定项目",420,420,324.25,{"v":0.77202380952381,"d":"77.20%"},"规范化小型水库的运行管理，进一步夯实小型水库安全基础，全面提升小型水库运行管理水平，对28座小型水库进行安全鉴定工作，列入全面推进河长制湖长制考核内容。","河口镇、建城镇、通门镇、历洞镇、连滩镇、千官镇、大方镇、大湾镇","广东中灏勘察设计咨询有限公司","已开工已完成","对郁南县29宗小型水库大坝进行安全鉴定，已完成绩效目标","无"]
["7、郁南都城大堤防洪墙裂缝监测自动化改造项目",32,32,31.5,{"v":0.984375,"d":"98.44%"},"规范化小型水库的运行管理，进一步夯实小型水库安全基础，全面提升小型水库运行管理水平，对28座小型水库进行安全鉴定工作，列入全面推进河长制湖长制考核内容。","都城大堤","广东省水利水电科学研究院","已开工已完成","对都城大提4805+200堤段防洪墙裂缝进行安装裂缝自动\n化监测改造设施。主要改造内容包括增设自动监测桩3套”\n(合裂缝计自动化监测)，增设无线传输系统3个，增设一\n杆式采集站(图像)1套，已完成绩效目标。","无"]
["8、郁南县南江河水面漂浮物清理",100,100,100,{"v":1,"d":"100.00%"},"完成郁南县南江河水浮莲、水面漂浮物清理","南江口镇","广东省云浮市第三建筑工程公司郁南分公司","已开工已完成","对郁南县南江河水浮莲及水面漂浮物进行清理，已完成绩效目标","无"]
["9、郁南县建城镇沙隆村委会半圳村污水处理建设工程",19,19,18.56,{"v":0.976842105263158,"d":"97.68%"},"建设沙隆村委会半圳村污水处理工程","建城镇沙隆半圳村","广东名都设计有限公司佛山分公司","已开工已完成","完善半圳村污水处理，已完成","无"]
["2022年涉农资金",{"$f":"SUM(B15:B23)","v":3780.274},{"$f":"SUM(C15:C23)","v":3780.274},{"$f":"SUM(D15:D23)","v":1841.97},{"v":0.487258331009869,"d":"48.73%"}]
["1、郁南县2022年万里碧道建设项目",500,500,117.42,{"v":0.23484,"d":"23.48%"},"建设南江河河口镇魔刀山段、南江口镇南江第一湾段、大湾镇至罗垠村段段碧道，建设碧道长度共约12.4公里，项目投资匡算4552万元","河口镇","广东西江建设发展有限公司","已开工实施中","绩效目标：中小河流治理长度3公里","无"]
["2、郁南县2021-2022年小水电站退出项目",150,150,62.61,{"v":0.4174,"d":"41.74%"},"郁南县2021年农林永发电站（装机225千瓦）、2022年枧峡电站（装机400千瓦）退出拆除","历洞镇、平台镇","云浮科信土地房地产资产评估有限公司、郁南县万红建设工程有限公司","历洞镇农林永发电站退出拆除项目已开工实施中；大河水库坝后电站、枧峡电站退出拆除及生态修复工程已开工已完成","绩效目标：小水电清理整改2宗\n自评结果：完成小水电清理整改2宗","无"]
["3、郁南县小水电清理整改“一站一策”方案编制",85,42,42,{"$f":"D17/C17","v":{"v":1,"d":"100.00%"}},"在水电站核查评估基础上，根据评估意见，对9宗退出类电站编制“ 一站一策”退出方案，对72宗整改类电站编制“一站一策”整改方案","－","广州珠江水资源保护科技发展有限公司","已开工已完成","绩效目标：完成郁南县小水电清理整改“一站一策”方案编制\n自评结果：完成郁南县小水电清理整改“一站一策”方案编制","无"]
["4、郁南县第一次全国自然灾害综合风险普查",120,68,68,{"v":1,"d":"100.00%"},"包括 水旱灾害致灾调查和评估、洪水重点隐患调查与评估、水旱灾害风险评估与区划、质检核查与成果汇集、水库安全风险计算及预警、培训与宣传等任务。","－","广东省水利水电科学研究院","已开工已完成","绩效目标：完成洪水隐患调查\n自评结果：完成洪水隐患调查","无"]
["5、郁南县2022年河长制工作项目",200,200,156.68,{"v":0.7834,"d":"78.34%"},"实施我县50平方公里以下集雨面积河流河道管理范围划定，分三个年度实施共约370公里；开展我县重点河湖健康评价，摸清河湖健康状态，找准河湖存在问题和成因；集中开展县域水面漂浮物专项清理打捞；对已经划定管理范围的河湖进一步设置界桩，明确管理边界，加强河湖管理以及河长制相关考核事项等","南江口镇都城镇","云浮市水利技术服务中心、广东省水利电力勘测设计研究院有限公司、中水珠江规划勘测设计有限公司","①云浮市2021-2122年度灌溉水有效利用系数测算（郁南县部分）已开工已完成；②云浮市罗定江干流水域岸线保护与利用规划已完成；③2021年度50平方公里以下河道管理范围划定已完成；④2022年郁南县碧道地表水水质检测服务已完成","绩效目标：完成河湖管护长度50公里\n自评结果：完成河湖管护长度50公里","无"]
["6、郁南县2022年电排电灌站升级改造工程",300,300,222.39,{"v":0.7413,"d":"74.13%"},"对电排电灌站进行升级改造工程（河口镇灯村电灌站重建工程、郁南县大湾镇狮子山、麒麟山电灌站改造工程）","河口镇、大湾镇","罗定市第五建筑工程有限公司、广东万红建设工程有限公司郁南分公司","已开工已完成","绩效目标：完成3座电排电灌站升级改造\n自评结果：完成3座电排电灌站升级改造","无"]
["7、郁南县水利工程维修养护项目",595.274,{"$f":"595.274+43+52","v":690.274},484.77,{"v":0.702286338468492,"d":"70.23%"},"对全县35宗小型水库，7宗县管水利工程以及镇属重要水利工程，以及存在隐患的堤防、水库、水闸、水陂、泵站和山塘等水利工程进行治理和维修改造，对重要水利工程进行划界确权工作等。","建城镇、大湾镇、东坝镇、南江口镇","肇庆市炫皓建筑材料有限公司、广东万红建设工程有限公司、广东省云浮市第三建筑工程公司郁南分公司、广东恒源建设集团有限公司、广东华南水电高新技术开发有限公司、郁南县兴民水利水电工程建设有限公司","①县管水利工程防洪抢险物资购置已完成；②建城镇罗子堤塌方应急修复工程已开工已完成；③郁南县大湾镇文化广场前水塘水质提升工程已开工已完成；④郁南县南江口金溪电排站维修工程已开工已完成；⑤郁南县南江口镇上迭村委沙地村挡土墙工程已开工已完成；⑥郁南县云霄干渠塌方应急处理及安全运行警示牌制安工程已开工已完成；⑦郁南县大王山龙湖路坝工程已开工已完成。","绩效目标：当年度实施小型病险水库除险加固座数2座\n自评结果：当年度实施小型病险水库除险加固座数2座","无"]
["8、千官镇葵旺村委办七办八村食水扩网分表到户工程",11,11,11,{"v":1,"d":"100.00%"},"建设办七办八村食水扩网和分表到户工程","千官镇","郁南县兴民水利水电工程建设有限公司","已开工已完成","绩效目标：完成了办七办八村群众的饮水安全\n自评结果：完成了办七办八村群众的饮水安全","无"]
["9、郁南县农村供水“三同五化”改造提升工程",1819,1819,677.1,{"v":0.372237493128092,"d":"37.22%"},"新建取水陂 1 座、新建水厂 1 座，新增产水规模 125t/h 净水设备，1 套新建蓄水池 1 座（600m3）、新建 PE 管网共计长 36397km 及闸阀、空气阀、泄水阀及阀门井等附属设施，新增加压泵站 1 座、更换加药消毒设备 11 套，新增水质化验设备 14 套、新增视频监控设备、水质在线监控设备 14 套、新建沉砂池 1 座，集水池 1 座，增设围栏 2km，标识牌 20 套，新建蓄水池 2 座（300m3），3 个现状镇级水厂厂区绿化，厂区围墙、建筑物立面靓化、新增宣传栏、宣传标语。","平台镇、桂圩镇、建城镇、宝珠镇、通门镇、大方镇、历洞镇、河口镇、宋桂镇、千官镇、东坝镇、连滩镇、南江口镇","星辰利源水利水电工程有限公司","已开工实施中","绩效目标：至2022年底，农村供水规模化覆盖人口比例提升5.74%以上（由现状 54.01%提高到 59.75%）\n自评结果：至2022年底，完成农村供水规模化覆盖人口比例提升5.74%以上（由现状 54.01%提高到 59.75%）","无"]
["2023年涉农资金",{"$f":"SUM(B25:B33)","v":2930},{"$f":"SUM(C25:C34)","v":4850},{"$f":"SUM(D25:D34)","v":3097.75},{"$f":"D24/C24","v":{"v":0.638711340206186,"d":"63.87%"}}]
["1、郁南县2023年水利工程维修养护项目",500,400,68.2,{"v":0.1705,"d":"17.05%"},"对全县7宗县管水利工程以及镇属水利工程，以及存在隐患的堤防、水库、水闸、水陂、泵站、山塘、河道等水利工程进行治理和维修，对重要水利工程进行划界确权工作等。","宋桂镇、大湾镇、河口镇、都城镇、东坝镇、南江口镇","郁南县兴民水利水电工程建设有限公司、广东家明建设工程有限公司、宏捷建设工程有限公司、","①建城镇向阳水库大坝修整工程已开工已完成；②宋桂镇白花村坑仔边宋桂河支流河道整治工程已开工已完成；③郁南县南江口镇南渡村委志魁塘闸修复工程已开工已完成；④河口镇和都村委古曾村应急排水渠和挡墙建设已开工实施中；⑤东坝镇葡东开发区浆砌石挡墙建设已开工已完成；⑥郁南县大湾镇河段地形应急勘测项目地形勘测服务已开工已完成。","绩效目标：提高供水能力8万方，改善灌溉面积3.2万亩，改善滞涝面积2万亩；2023年未开始自评","无"]
["2、郁南县病险水库除险加固工程",79,79,79,{"v":1,"d":"100.00%"},"对坝体及附属设施加固、安装自动化监测设备","东坝镇、通门镇        ","广东省水利水电建设有限公司","已开工已完成","绩效目标：当年新增完成小型病险水库除险加固2座","无"]
["3、郁南县都城大堤、三个中型水库超标准洪水防御预案技术服务项目",11,11,0,{"v":0,"d":"0.00%"},"编制郁南县县城超标准洪水防御预案,保障在外江西江发生超标准洪水或内河发生超标准洪水产生涝灾的情况下，保障郁南县城区人民生命和财产安全","－","广东粤源工程咨询有限公司","已开工实施中","绩效目标：做好汛期防御超标准洪水工作，确保安全度汛，保障人民生命财产安全","无"]
["4、郁南县农村供水“三同五化”改造提升工程（2022-2023）",500,0,{"$nulls":5},"资金已调整到其他项目","绩效目标：提高供水能力10万方，改善灌溉面积3.5万亩，改善滞涝面积2万亩","无"]
["5、郁南县宋桂镇水土流失综合治理工程",500,500,null,{"$f":"D29/C29","v":{"v":0,"d":"0.00%"}},"对宋桂镇水土流失进行综合治理，主要包括治理崩岗13座、河道清护岸5公里、种植水土保持经济林50亩、封山育林20平方公里。","宋桂镇","广东奥利水利工程有限公司","已开工已完成","绩效目标：治理水土流失面积41平方公里","无"]
["6、郁南县通门镇冲枚山洪沟治理工程",340,330,169.73,{"v":0.514333333333333,"d":"51.43%"},"治理山洪沟治理总长 11.39km，其中龙迳村~干坑口段长约11.08km，冲邦口段长约0.31km。新建护岸2.49km、河道清淤疏浚11.39km，新建亲水步道0.33km，重建人行桥1座，新增“三要素”（视频）遥测站 1 套。","通门镇","广东西江建设有限公司","已开工已完成","绩效目标：治理20公里冲枚山洪沟，集水面积65平方公里","无"]
["7、2023年河长湖长制项目",0,250,79.57,{"v":0.31828,"d":"31.83%"},"对县内流域面积50平方公里以下的29条河流开展河道管理范围划定；开展县内水域水面漂浮物打捞清理；水质检测、河湖健康评价、幸福河湖建设等","－","广东精益空间信息技术股份有限公司、郁南县兴民水利水电工程建设有限公司、云浮市水利水电技术服务中心","已开工实施中","绩效目标：划定流域面积50平方公里以下河流道管理范围；对县内水域水面漂浮物打捞清理；开展碧道河段水质检测等","无"]
["8、郁南县2021-2023年省级碧道项目库碧道建设项目",1000,0,{"$nulls":5},"资金已调整到其他项目","绩效目标：建成碧道43.3公里","无"]
["9、2023年度郁南县南江河（郁南连东堤段）综合治理工程项目",0,3270,2691.25,{"v":0.823012232415902,"d":"82.30%"},"1.河道整治工程：包括护岸长度2.26公里，通过整治河道淤积、清理杂物等方式，提高河道通行能力和水流稳定性。\n2.堤防加固工程：包括堤防加固长度17.567公里和堤基加固8.11km，按照20年一遇防洪标准设计，提高堤防的抗洪能力和稳定性。\n3.排水涵闸工程：加固或重建排水涵闸21座，改善排水条件，减少汛期积水。\n4.电排站工程：新建、重建或加固电排站8座，提高排水系统的自动化程度和稳定性。\n5.截洪沟及水破工程：新建或重建截洪沟(渠)长度1.05公里，重建磨面坑破头1座，增强洪水泄洪能力，降低洪水对周边地区的影响。","连滩镇、        东坝镇","广东省水利水电第三工程局有限公司","已开工实施中","绩效目标：河道整治护岸长度 2.39km；堤防加固长度17.613km（其中堤身培厚 17.613km，堤基高压摆喷防渗墙 8.07km）；加固或重建排水涵闸 23 座（其中加固 4 座，重建 19 座）；新建、重建或加固电排站 8 座（其中加固 2 座，重建 1 座，新建 1 座）；新建或重建截洪沟（渠）长度 1.07km；重建磨面坑陂头 1 座。","无"]
["10、2023年郁南县农业水价综合改革精准补贴与节水奖励项目",0,10,10,{"v":1,"d":"100.00%"},"安排涉农资金10万元奖补到郁南县水利事务管理中心用于大河灌区农业水价改革工作。","平台镇","郁南县水利事务管理中心","已开工已完成","绩效目标：当年度新增农业水价综合改革实施面积2.1万亩","无"]